fUSD/lending_fUSD_20251023
["ID","MTS","AMOUNT","RATE_DAILY","PERIOD"]
[392124602,1761184233845,-500.0,0.00043789,120]
[392124603,1761184233855,-506.43761647,0.00043789,120]
[392124604,1761184233864,-500.0,0.00043789,7]
[392124605,1761184233874,-537.98410489,0.00043789,30]
[392124606,1761184233883,-616.79132273,0.00043789,120]
[392124607,1761184233893,-152.814199,0.0004379,120]
[392124608,1761184233903,-151.0,0.0004379,120]
[392124609,1761184233912,-217.173753,0.0004379,120]
[392124610,1761184233922,-151.0,0.0004379,120]
[392124611,1761184233932,-151.0,0.0004379,120]
[392124612,1761184233943,-151.0,0.0004379,120]
[392124613,1761184233952,-151.0,0.0004379,120]
[392124614,1761184233962,-917.651884,0.0004379,120]
[392124615,1761184233971,-917.651884,0.0004379,120]
[392124616,1761184233980,-917.651884,0.0004379,120]
[392124617,1761184233989,-232.949373,0.0004379,120]
[392124618,1761184233999,-917.651884,0.0004379,120]
[392124619,1761184234008,-917.651884,0.0004379,120]
[392124620,1761184234017,-917.651884,0.0004379,120]
[392124621,1761184234026,-917.651884,0.0004379,120]
[392124622,1761184234036,-917.651884,0.0004379,120]
[392124623,1761184234045,-714.592106,0.0004379,120]
[392124624,1761184234054,-714.592106,0.0004379,120]
[392124625,1761184234064,-714.592106,0.0004379,120]
[392124626,1761184234073,-714.592106,0.0004379,120]
[392124627,1761184234082,-714.592106,0.0004379,120]
[392124628,1761184234093,-714.592106,0.0004379,120]
[392124629,1761184234105,-714.592106,0.0004379,120]
[392124630,1761184234114,-714.592106,0.0004379,120]
[392124631,1761184234124,-151.0,0.0004379,120]
[392124632,1761184234133,-155.737518,0.0004379,120]
[392124633,1761184234144,-155.877639,0.0004379,120]
[392124634,1761184234155,-233.227352,0.0004379,120]
[392124635,1761184234166,-229.099522,0.0004379,120]
[392124636,1761184234178,-229.099522,0.0004379,120]
[392124637,1761184234190,-229.099522,0.0004379,120]
[392124638,1761184234199,-229.099522,0.0004379,120]
[392124639,1761184234208,-229.099522,0.0004379,120]
[392124640,1761184234218,-229.099522,0.0004379,120]
[392124641,1761184234228,-229.099522,0.0004379,120]
[392124642,1761184234238,-229.099522,0.0004379,120]
[392124643,1761184234247,-151.0,0.0004379,120]
[392124644,1761184234257,-151.0,0.0004379,120]
[392124645,1761184234267,-151.0,0.0004379,120]
[392124646,1761184234276,-151.0,0.0004379,120]
[392124647,1761184234285,-171.775518,0.0004379,120]
[392124648,1761184234295,-154.746191,0.0004379,120]
[392124649,1761184234304,-154.746191,0.0004379,120]
[392124650,1761184234314,-151.0,0.0004379,120]
[392124651,1761184234324,-151.0,0.0004379,120]
[392124652,1761184234334,-154.746191,0.0004379,120]
[392124653,1761184234345,-154.746191,0.0004379,120]
[392124654,1761184234355,-154.746191,0.0004379,120]
[392124655,1761184234365,-154.746191,0.0004379,120]
[392124656,1761184234377,-151.0,0.0004379,120]
[392124657,1761184234389,-151.0,0.0004379,120]
[392124658,1761184234399,-154.746191,0.0004379,120]
[392124659,1761184234410,-154.746191,0.0004379,120]
[392124660,1761184234420,-151.0,0.0004379,120]
[392124661,1761184234429,-186.828698,0.0004379,120]
[392124662,1761184234439,-267.299282,0.0004379,120]
[392124663,1761184234448,-267.299282,0.0004379,120]
[392124664,1761184234459,-267.299282,0.0004379,120]
[392124665,1761184234468,-267.299282,0.0004379,120]
[392124666,1761184234478,-267.299282,0.0004379,120]
[392124667,1761184234487,-151.0,0.0004379,120]
[392124668,1761184234498,-267.299282,0.0004379,120]
[392124669,1761184234508,-151.0,0.0004379,120]
[392124670,1761184234517,-267.299282,0.0004379,120]
[392124671,1761184234527,-267.299282,0.0004379,120]
[392124672,1761184234539,-151.0,0.0004379,120]
[392124673,1761184234548,-151.0,0.0004379,120]
[392124674,1761184234557,-151.0,0.0004379,120]
[392124675,1761184234567,-151.0,0.0004379,120]
[392124676,1761184234576,-151.0,0.0004379,120]
[392124677,1761184234586,-156.754567,0.0004379,120]
[392124678,1761184234595,-151.0,0.0004379,120]
[392124679,1761184234605,-170.256797,0.0004379,120]
[392124680,1761184234615,-151.0,0.0004379,120]
[392124681,1761184234624,-220.903355,0.0004379,120]
[392124682,1761184234633,-151.0,0.0004379,120]
[392124683,1761184234643,-151.0,0.0004379,120]
[392124684,1761184234652,-151.0,0.0004379,15]
[392124685,1761184234661,-297.415861,0.0004379,15]
[392124686,1761184234671,-151.0,0.0004379,120]
[392124687,1761184234680,-152.56629,0.0004379,120]
[392124688,1761184234691,-151.0,0.0004379,120]
[392124689,1761184234700,-151.0,0.0004379,120]
[392124690,1761184234709,-151.0,0.0004379,120]
[392124691,1761184234719,-151.0,0.0004379,120]
[392124692,1761184234728,-153.772643,0.0004379,120]
[392124693,1761184234738,-223.556767,0.0004379,120]
[392124694,1761184234747,-151.0,0.0004379,120]
[392124695,1761184234757,-157.699041,0.0004379,120]
[392124696,1761184234766,-151.0,0.0004379,120]
[392124697,1761184234775,-151.0,0.0004379,120]
[392124698,1761184234784,-501.935619,0.0004379,30]
[392124699,1761184234794,-501.935619,0.0004379,30]
[392124700,1761184234803,-151.0,0.0004379,120]
[392124701,1761184234813,-501.935619,0.0004379,30]
[392124702,1761184234822,-151.0,0.0004379,120]
[392124703,1761184234832,-501.935619,0.0004379,30]
[392124704,1761184234842,-501.935619,0.0004379,30]
[392124705,1761184234851,-501.935619,0.0004379,30]
[392124706,1761184234862,-151.0,0.0004379,120]
[392124707,1761184234873,-501.935619,0.0004379,30]
[392124708,1761184234882,-151.0,0.0004379,120]
[392124709,1761184234893,-501.935619,0.0004379,30]
[392124710,1761184234902,-187.940958,0.0004379,120]
[392124711,1761184234912,-187.940958,0.0004379,120]
[392124712,1761184234921,-187.940958,0.0004379,120]
[392124713,1761184234930,-187.940958,0.0004379,120]
[392124714,1761184234939,-187.940958,0.0004379,120]
[392124715,1761184234948,-187.940958,0.0004379,120]
[392124716,1761184234958,-187.940958,0.0004379,120]
[392124717,1761184234969,-187.940958,0.0004379,120]
[392124718,1761184234978,-151.0,0.0004379,120]
[392124719,1761184234987,-151.0,0.0004379,120]
[392124720,1761184234997,-151.0,0.0004379,120]
[392124721,1761184235007,-151.0,0.0004379,120]
[392124722,1761184235017,-151.0,0.0004379,120]
[392124723,1761184235026,-151.0,0.0004379,120]
[392124724,1761184235036,-151.0,0.0004379,120]
[392124725,1761184235045,-167.252103,0.0004379,120]
[392124726,1761184235055,-151.0,0.0004379,120]
[392124727,1761184235066,-151.0,0.0004379,120]
[392124728,1761184235076,-151.0,0.0004379,120]
[392124729,1761184235086,-209.521971,0.0004379,120]
[392124730,1761184235099,-201.640346,0.0004379,120]
[392124731,1761184235109,-151.0,0.0004379,120]
[392124732,1761184235118,-151.0,0.0004379,120]
[392124733,1761184235128,-151.000004,0.0004379,120]
[392124734,1761184235137,-154.97585,0.0004379,120]
[392124735,1761184235146,-157.31898,0.0004379,120]
[392124736,1761184235156,-151.0,0.0004379,120]
[392124737,1761184235165,-151.0,0.0004379,120]
[392124738,1761184235174,-151.0,0.0004379,120]
[392124739,1761184235185,-151.0,0.0004379,120]
[392124740,1761184235196,-154.346604,0.0004379,120]
[392124741,1761184235206,-151.0,0.0004379,120]
[392124742,1761184235216,-151.0,0.0004379,120]
[392124743,1761184235225,-151.0,0.0004379,120]
[392124744,1761184235235,-151.0,0.0004379,120]
[392124745,1761184235247,-151.0,0.0004379,120]
[392124746,1761184235257,-151.0,0.0004379,120]
[392124747,1761184235266,-151.0,0.0004379,120]
[392124748,1761184235276,-151.0,0.0004379,120]
[392124749,1761184235285,-151.0,0.0004379,120]
[392124750,1761184235295,-151.0,0.0004379,120]
[392124751,1761184235304,-151.0,0.0004379,120]
[392124752,1761184235314,-251.368654,0.0004379,120]
[392124753,1761184235323,-151.0,0.0004379,120]
[392124754,1761184235333,-151.0,0.0004379,120]
[392124755,1761184235342,-151.0,0.0004379,120]
[392124756,1761184235351,-151.0,0.0004379,120]
[392124757,1761184235360,-151.0,0.0004379,120]
[392124758,1761184235370,-151.0,0.0004379,120]
[392124759,1761184235379,-151.0,0.0004379,120]
[392124760,1761184235388,-276.936239,0.0004379,120]
[392124761,1761184235398,-151.0,0.0004379,120]
[392124762,1761184235407,-151.0,0.0004379,60]
[392124763,1761184235416,-151.0,0.0004379,120]
[392124764,1761184235426,-152.370422,0.0004379,120]
[392124765,1761184235435,-151.0,0.0004379,120]
[392124766,1761184235444,-151.0,0.0004379,120]
[392124767,1761184235453,-151.0,0.0004379,120]
[392124768,1761184235463,-151.0,0.0004379,120]
[392124769,1761184235473,-376.182282,0.0004379,120]
[392124770,1761184235482,-151.0,0.0004379,120]
[392124771,1761184235491,-376.182282,0.0004379,120]
[392124772,1761184235500,-151.0,0.0004379,120]
[392124773,1761184235509,-376.182282,0.0004379,120]
[392124774,1761184235518,-392.57053,0.0004379,120]
[392124775,1761184235527,-151.0,0.0004379,120]
[392124776,1761184235537,-376.182282,0.0004379,120]
[392124777,1761184235546,-392.57053,0.0004379,120]
[392124778,1761184235556,-392.57053,0.0004379,120]
[392124779,1761184235565,-392.57053,0.0004379,120]
[392124780,1761184235574,-151.0,0.0004379,120]
[392124781,1761184235584,-162.688325,0.0004379,30]
[392124782,1761184235593,-151.993024,0.0004379,120]
[392124783,1761184235603,-151.0,0.0004379,120]
[392124784,1761184235613,-151.0,0.0004379,120]
[392124785,1761184235623,-151.0,0.0004379,120]
[392124786,1761184235634,-151.0,0.0004379,120]
[392124787,1761184235643,-151.0,0.0004379,120]
[392124788,1761184235652,-151.0,0.0004379,120]
[392124789,1761184235781,-151.0,0.0004379,120]
[392124790,1761184235791,-156.901271,0.0004379,120]
[392124791,1761184235801,-151.0,0.0004379,120]
[392124792,1761184235812,-228.82535,0.0004379,120]
[392124793,1761184235821,-92662.9368,0.0004379,2]
[392124794,1761184235832,-238.0,0.00043817,120]
[392124795,1761184235842,-597.08492809,0.00043825,3]
[392124796,1761184235851,-500.0,0.00043834,120]
[392124797,1761184235862,-500.0,0.00043834,120]
[392124798,1761184235871,-500.0,0.00043834,7]
[392124799,1761184235882,-500.0,0.00043835,120]
[392124800,1761184235892,-500.0,0.00043835,120]
[392124801,1761184235903,-500.0,0.00043835,120]
[392124802,1761184235912,-578.46029726,0.00043835,120]
[392124803,1761184235921,-500.0,0.00043835,120]
[392124804,1761184235932,-500.0,0.00043835,120]
[392124805,1761184235943,-500.0,0.00043835,30]
[392124806,1761184235953,-500.0,0.00043835,30]
[392124807,1761184235963,-224.58651847,0.00043835,120]
[392124808,1761184235972,-503.82184735,0.00043835,120]
[392124809,1761184235982,-501.86967301,0.00043835,120]
[392124810,1761184235993,-152.58705768,0.00043835,30]
[392124811,1761184236003,-500.0,0.00043835,120]
[392124812,1761184236014,-500.0,0.00043835,120]
[392124813,1761184236023,-500.0,0.00043835,120]
[392124814,1761184236034,-500.0,0.00043835,120]
[392124815,1761184236045,-500.0,0.00043835,120]
[392124816,1761184236056,-162.01,0.00043835,7]
[392124817,1761184236066,-500.0,0.00043835,120]
[392124818,1761184236076,-500.0,0.00043835,120]
[392124819,1761184236086,-500.0,0.00043835,120]
[392124820,1761184236098,-500.0,0.00043835,120]
[392124821,1761184236108,-500.0,0.00043835,120]
[392124822,1761184236118,-500.0,0.00043835,120]
[392124823,1761184236127,-500.0,0.00043835,120]
[392124824,1761184236139,-167.8941387,0.00043835,120]
[392124825,1761184236148,-500.0,0.00043835,120]
[392124826,1761184236157,-500.0,0.00043835,120]
[392124827,1761184236170,-501.52321923,0.00043835,120]
[392124828,1761184236180,-500.0,0.00043835,12]
[392124829,1761184236189,-500.0,0.00043835,12]
[392124830,1761184236200,-500.0,0.00043835,120]
[392124831,1761184236209,-500.0,0.00043835,120]
[392124832,1761184236219,-300.0,0.00043835,120]
[392124833,1761184236230,-300.0,0.00043835,120]
[392124834,1761184236240,-509.56656855,0.00043835,120]
[392124835,1761184236250,-500.0,0.00043835,120]
[392124836,1761184236260,-500.0,0.00043835,120]
[392124837,1761184236269,-588.50350534,0.00043835,120]
[392124838,1761184236279,-188.08002445,0.00043835,120]
[392124839,1761184236288,-500.0,0.00043835,120]
[392124840,1761184236297,-1196.83,0.00043835,120]
[392124841,1761184236306,-500.0,0.00043835,120]
[392124842,1761184236315,-1535.48,0.00043835,2]
[392124843,1761184236325,-294.51624635,0.00043835,120]
[392124844,1761184236334,-500.0,0.00043835,120]
[392124845,1761184236343,-500.0,0.00043835,120]
[392124846,1761184236352,-162.87552876,0.00043835,120]
[392124847,1761184236361,-300.0,0.00043835,2]
[392124848,1761184236371,-307.75273473,0.00043835,120]
[392124849,1761184236379,-150.8583152,0.00043835,120]
[392124850,1761184236388,-214.07574568,0.00043835,120]
[392124851,1761184236397,-569.71916409,0.00043835,120]
[392124852,1761184236407,-500.0,0.00043835,120]
[392124853,1761184236416,-500.0,0.00043835,120]
[392124854,1761184236425,-303.02074189,0.00043835,120]
[392124855,1761184236434,-283.13226459,0.00043835,120]
[392124856,1761184236443,-500.0,0.00043835,120]
[392124857,1761184236452,-159.49669781,0.00043835,120]
[392124858,1761184236461,-500.0,0.00043835,120]
[392124859,1761184236471,-500.0,0.00043835,120]
[392124860,1761184236480,-159.1339058,0.00043835,120]
[392124861,1761184236490,-178.2997935,0.00043835,120]
[392124862,1761184236499,-162.81187183,0.00043835,120]
[392124863,1761184236507,-500.0,0.00043835,120]
[392124864,1761184236516,-476.02331752,0.00043835,120]
[392124865,1761184236526,-252.42860916,0.00043835,120]
[392124866,1761184236536,-319.0543003,0.00043835,120]
[392124867,1761184236545,-338.34959539,0.00043835,120]
[392124868,1761184236554,-500.0,0.00043835,120]
[392124869,1761184236563,-617.83492882,0.00043835,120]
[392124870,1761184236572,-314.26263694,0.00043835,120]
[392124871,1761184236581,-244.21845383,0.00043835,30]
[392124872,1761184236591,-193.40190759,0.00043835,120]
[392124873,1761184236600,-500.0,0.00043835,120]
[392124874,1761184236609,-157.4257082,0.00043835,120]
[392124875,1761184236618,-489.71276612,0.00043835,120]
[392124876,1761184236626,-500.0,0.00043835,120]
[392124877,1761184236635,-500.0,0.00043835,120]
[392124878,1761184236645,-198.6076272,0.00043835,120]
[392124879,1761184236655,-150.21515964,0.00043835,120]
[392124880,1761184236666,-154.14495331,0.00043835,120]
[392124881,1761184236676,-165.92567382,0.00043835,120]
[392124882,1761184236687,-169.39194944,0.00043835,120]
[392124883,1761184236698,-274.87948128,0.00043835,120]
[392124884,1761184236710,-308.83372678,0.00043835,120]
[392124885,1761184236719,-415.49269171,0.00043835,120]
[392124886,1761184236729,-500.0,0.00043835,120]
[392124887,1761184236740,-500.0,0.00043835,120]
[392124888,1761184236751,-154.52555926,0.00043835,120]
[392124889,1761184236767,-500.0,0.00043835,120]
[392124890,1761184236776,-180.76727335,0.00043835,120]
[392124891,1761184236787,-202.41817334,0.00043835,120]
[392124892,1761184236796,-486.33274118,0.00043835,120]
[392124893,1761184236806,-500.0,0.00043835,120]
[392124894,1761184236816,-500.0,0.00043835,120]
[392124895,1761184236825,-196.53379177,0.00043835,120]
[392124896,1761184236835,-154.86884208,0.00043835,120]
[392124897,1761184236844,-186.04966265,0.00043835,120]
[392124898,1761184236855,-168.12439365,0.00043835,120]
[392124899,1761184236864,-344.94777415,0.00043835,120]
[392124900,1761184236873,-500.0,0.00043835,120]
[392124901,1761184236883,-500.0,0.00043835,120]
[392124902,1761184236892,-318.23698399,0.00043835,120]
[392124903,1761184236901,-176.6948579,0.00043835,120]
[392124904,1761184236910,-500.0,0.00043835,60]
[392124905,1761184236920,-500.0,0.00043835,60]
[392124906,1761184236928,-500.0,0.00043835,120]
[392124907,1761184236938,-608.73396484,0.00043835,120]
[392124908,1761184236949,-238.0,0.00043866,30]
[392124909,1761184236962,-202.7717894,0.00043869,3]
[392124910,1761184236971,-198.46049643,0.00043869,3]
[392124911,1761184236982,-277.51912093,0.00043869,3]
[392124912,1761184236991,-358.67599973,0.00043869,3]
[392124913,1761184237002,-250.0,0.00043869,3]
[392124914,1761184237012,-250.0,0.00043869,3]
[392124915,1761184237022,-250.0,0.00043869,3]
[392124916,1761184237031,-270.85841761,0.00043869,3]
[392124917,1761184237040,-244.73,0.0004387,2]
[392124918,1761184237050,-168.0,0.00043879,7]
[392124919,1761184237059,-151.0,0.0004388,120]
[392124920,1761184237069,-151.0,0.0004388,120]
[392124921,1761184237078,-151.0,0.0004388,120]
[392124922,1761184237087,-181.592379,0.0004388,120]
[392124923,1761184237102,-181.592379,0.0004388,120]
[392124924,1761184237112,-181.592379,0.0004388,120]
[392124925,1761184237122,-247.900424,0.0004388,120]
[392124926,1761184237131,-181.592379,0.0004388,120]
[392124927,1761184237141,-247.900424,0.0004388,120]
[392124928,1761184237150,-247.900424,0.0004388,120]
[392124929,1761184237163,-247.900424,0.0004388,120]
[392124930,1761184237172,-516.13286185,0.0004388,120]
[392124931,1761184237181,-503.1126393,0.0004388,120]
[392124932,1761184237191,-236.33581226,0.0004388,30]
[392124933,1761184237201,-500.0,0.0004388,120]
[392124934,1761184237210,-500.0,0.0004388,120]
[392124935,1761184237220,-500.0,0.0004388,120]
[392124936,1761184237230,-500.0,0.0004388,120]
[392124937,1761184237239,-500.0,0.0004388,120]
[392124938,1761184237249,-500.0,0.0004388,120]
[392124939,1761184237258,-500.0,0.0004388,120]
[392124940,1761184237268,-500.0,0.0004388,120]
[392124941,1761184237277,-500.0,0.0004388,12]
[392124942,1761184237287,-500.0,0.0004388,120]
[392124943,1761184237296,-308.67267885,0.0004388,120]
[392124944,1761184237306,-500.0,0.0004388,120]
[392124945,1761184237315,-4865.22143049,0.0004388,3]
[392124946,1761184237336,-5699.84848541,0.0004388,3]
[392124947,1761184237347,-500.0,0.00043888,10]
[392124948,1761184237361,-501.04327166,0.00043888,10]
[392124949,1761184237370,-251.85710336,0.00043888,10]
[392124950,1761184237380,-505.51997312,0.00043888,3]
[392124951,1761184237389,-500.67602621,0.00043889,60]
[392124952,1761184237398,-500.0,0.00043889,120]
[392124953,1761184237407,-238.2073395,0.00043889,120]
[392124954,1761184237420,-500.0,0.00043889,120]
[392124955,1761184237434,-1196.83,0.00043889,120]
[392124956,1761184237443,-531.6466883,0.00043889,120]
[392124957,1761184237453,-500.0,0.00043889,120]
[392124958,1761184237462,-1535.48,0.00043889,2]
[392124959,1761184237472,-300.0,0.00043889,2]
[392124960,1761184237481,-320.44521854,0.00043889,120]
[392124961,1761184237491,-151.0,0.0004389,120]
[392124962,1761184237499,-151.873901,0.0004389,120]
[392124963,1761184237509,-151.0,0.0004389,120]
[392124964,1761184237519,-151.0,0.0004389,120]
[392124965,1761184237529,-156.786455,0.0004389,120]
[392124966,1761184237538,-151.0,0.0004389,30]
[392124967,1761184237547,-151.0,0.0004389,30]
[392124968,1761184237560,-151.0,0.0004389,120]
[392124969,1761184237570,-151.0,0.0004389,120]
[392124970,1761184237579,-151.0,0.0004389,120]
[392124971,1761184237588,-154.242662,0.0004389,120]
[392124972,1761184237598,-151.0,0.0004389,120]
[392124973,1761184237607,-151.0,0.0004389,120]
[392124974,1761184237617,-151.0,0.0004389,120]
[392124975,1761184237626,-151.0,0.0004389,120]
[392124976,1761184237635,-151.0,0.0004389,120]
[392124977,1761184237645,-153.282994,0.0004389,120]
[392124978,1761184237654,-151.0,0.0004389,120]
[392124979,1761184237663,-158.082279,0.0004389,120]
[392124980,1761184237672,-151.0,0.0004389,120]
[392124981,1761184237681,-160.112389,0.0004389,120]
[392124982,1761184237690,-151.0,0.0004389,120]
[392124983,1761184237699,-152.767338,0.0004389,120]
[392124984,1761184237708,-151.0,0.0004389,120]
[392124985,1761184237717,-151.0,0.0004389,120]
[392124986,1761184237727,-151.0,0.0004389,120]
[392124987,1761184237736,-151.0,0.0004389,120]
[392124988,1761184237745,-151.0,0.0004389,120]
[392124989,1761184237758,-151.0,0.0004389,120]
[392124990,1761184237767,-151.0,0.0004389,120]
[392124991,1761184237776,-169.444849,0.0004389,120]
[392124992,1761184237786,-151.0,0.0004389,120]
[392124993,1761184237795,-151.0,0.0004389,120]
[392124994,1761184237806,-156.907162,0.0004389,120]
[392124995,1761184237816,-151.0,0.0004389,120]
[392124996,1761184237825,-151.0,0.0004389,120]
[392124997,1761184237835,-151.0,0.0004389,120]
[392124998,1761184237844,-151.0,0.0004389,120]
[392124999,1761184237854,-151.0,0.0004389,120]
[392125000,1761184237863,-184.123114,0.0004389,120]
[392125001,1761184237873,-151.0,0.0004389,120]
[392125002,1761184237882,-151.0,0.0004389,120]
[392125003,1761184237891,-151.0,0.0004389,14]
[392125004,1761184237901,-151.0,0.0004389,14]
[392125005,1761184237910,-151.0,0.0004389,120]
[392125006,1761184237919,-151.0,0.0004389,120]
[392125007,1761184237928,-151.0,0.0004389,120]
[392125008,1761184237937,-151.0,0.0004389,120]
[392125009,1761184237946,-151.0,0.0004389,120]
[392125011,1761184237956,-151.0,0.0004389,120]
[392125012,1761184237965,-151.0,0.0004389,120]
[392125013,1761184237975,-151.0,0.0004389,120]
[392125014,1761184237985,-247.240867,0.0004389,120]
[392125015,1761184237994,-151.0,0.0004389,120]
[392125016,1761184238004,-236.796308,0.0004389,120]
[392125017,1761184238014,-151.0,0.0004389,90]
[392125018,1761184238024,-151.0,0.0004389,90]
[392125019,1761184238034,-151.0,0.0004389,120]
[392125020,1761184238043,-151.0,0.0004389,120]
[392125021,1761184238053,-151.0,0.0004389,120]
[392125022,1761184238063,-151.0,0.0004389,120]
[392125023,1761184238076,-151.0,0.0004389,120]
[392125024,1761184238086,-151.0,0.0004389,120]
[392125025,1761184238097,-151.0,0.0004389,120]
[392125026,1761184238107,-151.0,0.0004389,120]
[392125027,1761184238117,-151.0,0.0004389,120]
[392125028,1761184238127,-151.0,0.0004389,120]
[392125029,1761184238139,-151.0,0.0004389,120]
[392125030,1761184238159,-311.795071,0.0004389,120]
[392125031,1761184238170,-311.795071,0.0004389,120]
[392125032,1761184238184,-311.795071,0.0004389,120]
[392125033,1761184238194,-311.795071,0.0004389,120]
[392125034,1761184238205,-311.795071,0.0004389,120]
[392125035,1761184238216,-311.795071,0.0004389,120]
[392125036,1761184238225,-311.795071,0.0004389,120]
[392125037,1761184238236,-311.795071,0.0004389,120]
[392125038,1761184238246,-151.0,0.0004389,120]
[392125039,1761184238256,-151.0,0.0004389,120]
[392125040,1761184238266,-270.18472,0.0004389,120]
[392125041,1761184238275,-151.0,0.0004389,120]
[392125042,1761184238285,-151.0,0.0004389,120]
[392125043,1761184238295,-334.93981,0.0004389,120]
[392125044,1761184238305,-334.93981,0.0004389,120]
[392125045,1761184238315,-334.93981,0.0004389,120]
[392125046,1761184238324,-334.93981,0.0004389,120]
[392125048,1761184238334,-334.93981,0.0004389,120]
[392125050,1761184238344,-334.93981,0.0004389,120]
[392125052,1761184238354,-334.93981,0.0004389,120]
[392125054,1761184238364,-334.93981,0.0004389,120]
[392125056,1761184238373,-151.0,0.0004389,120]
[392125058,1761184238383,-151.0,0.0004389,120]
[392125060,1761184238393,-151.0,0.0004389,120]
[392125062,1761184238402,-151.0,0.0004389,120]
[392125064,1761184238411,-151.0,0.0004389,120]
[392125067,1761184238423,-151.0,0.0004389,120]
[392125069,1761184238432,-151.0,0.0004389,120]
[392125070,1761184238442,-151.0,0.0004389,120]
[392125071,1761184238451,-151.0,0.0004389,120]
[392125072,1761184238461,-151.0,0.0004389,120]
[392125073,1761184238471,-151.0,0.0004389,120]
[392125074,1761184238480,-151.0,0.0004389,120]
[392125075,1761184238490,-151.0,0.0004389,120]
[392125076,1761184238499,-151.0,0.0004389,120]
[392125077,1761184238509,-151.0,0.0004389,120]
[392125078,1761184238519,-151.0,0.0004389,120]
[392125079,1761184238529,-181.592379,0.0004389,120]
[392125080,1761184238539,-181.592379,0.0004389,120]
[392125081,1761184238548,-181.592379,0.0004389,120]
[392125082,1761184238558,-247.900424,0.0004389,120]
[392125083,1761184238567,-181.592387,0.0004389,120]
[392125084,1761184238577,-247.900424,0.0004389,120]
[392125085,1761184238587,-247.900424,0.0004389,120]
[392125086,1761184238596,-247.900424,0.0004389,120]
[392125087,1761184238606,-151.0,0.0004389,120]
[392125088,1761184238616,-151.0,0.0004389,120]
[392125089,1761184238626,-917.651884,0.0004389,120]
[392125090,1761184238635,-917.651884,0.0004389,120]
[392125091,1761184238644,-917.651884,0.0004389,120]
[392125092,1761184238654,-917.651884,0.0004389,120]
[392125093,1761184238663,-714.592106,0.0004389,120]
[392125094,1761184238672,-714.592106,0.0004389,120]
[392125095,1761184238681,-714.592106,0.0004389,120]
[392125096,1761184238690,-714.592106,0.0004389,120]
[392125097,1761184238701,-229.099522,0.0004389,120]
[392125098,1761184238711,-229.099522,0.0004389,120]
[392125099,1761184238720,-229.099522,0.0004389,120]
[392125100,1761184238730,-229.099522,0.0004389,120]
[392125101,1761184238740,-231.664832,0.0004389,120]
[392125102,1761184238751,-151.0,0.0004389,120]
[392125103,1761184238761,-154.746191,0.0004389,120]
[392125104,1761184238772,-151.0,0.0004389,120]
[392125105,1761184238931,-154.746191,0.0004389,120]
[392125106,1761184238941,-154.746191,0.0004389,120]
[392125107,1761184238951,-151.0,0.0004389,120]
[392125108,1761184238960,-154.746191,0.0004389,120]
[392125109,1761184238970,-267.299282,0.0004389,120]
[392125110,1761184238979,-267.299282,0.0004389,120]
[392125111,1761184238989,-267.299282,0.0004389,120]
[392125112,1761184238998,-151.0,0.0004389,120]
[392125113,1761184239008,-267.299282,0.0004389,120]
[392125114,1761184239018,-151.0,0.0004389,120]